Cogmind - Beta 13 @@@ ROGUE MODE // 2024.04.19 @ 04:37:07 Player: Khoroshiy Result: Destroyed by S-27 Virus with Autogun Performance ------------- Evolutions (4) 2000 Regions Visited (4) 800 Robots Destroyed (27) 135 Value Destroyed (885) 885 Prototype IDs (0) 0 Alien Tech Used (0) 0 Bonus (49) 49 TOTAL SCORE: 3869 Bonus ------- High Alert Combat Kills 49 Cogmind --------- Core Integrity 0/850 Matter 57/300 Energy 59/450 System Corruption 4% Temperature Cool (0) Movement Core (250) Ox4 Location -6/Factory Parts ------- > --- POWER (4) -------- (None) > --- PROPULSION (4) --- (None) > --- UTILITY (2) ------ Energy Well Field Recycling Unit > --- WEAPON (5) ------- (None) > --- INVENTORY (5) ---- (None) Peak State ------------ > --- POWER ------------ Reinforced Deuterium Engine Micro Nuclear Core > --- PROPULSION ------- Carbon-fiber Leg Carbon-fiber Leg Titanium Leg Nuclear Pulse Thruster > --- UTILITY ---------- Improved Terrain Scanner Shield Generator > --- WEAPON ----------- Beamcaster Flak Gun Battle Cannon Assault Cannon > --- INVENTORY -------- Aluminum Leg Nuclear Pulse Thruster Nuclear Pulse Thruster Field Recycling Unit [Rating: 42] Favorites ----------- Power Ion Engine Engine Ion Engine Power Core Micro Nuclear Core Propulsion Aluminum Leg Treads Light Treads Leg Aluminum Leg Hover Unit Gravmag Array Flight Unit Nuclear Pulse Thruster Utility Scrap Shield Device Improved Terrain Scanner Storage Energy Well Protection Scrap Shield Weapon Grenade Launcher Energy Gun EM Pulse Gun Ballistic Gun Flak Gun Ballistic Cannon Battle Cannon Launcher Grenade Launcher Build | -11 -10 -10 -8 -6 ------- Run | Yrd Mat Sub Rec Fac Slots Evolved 8 | . . . . 8 Power 3 | . . . . 3 Propulsion 2 | . . . . 2 Utility . | . . . . . Weapon 3 | . . . . 3 Parts Attached 56 | 11 1 5 16 23 Power 6 | 3 . . 2 1 Engine 4 | 3 . . 1 . Core 2 | . . . 1 1 Reactor . | . . . . . Propulsion 25 | 3 . . 7 15 Treads 9 | . . . 3 6 Leg 12 | 3 . . 4 5 Wheel . | . . . . . Hover 1 | . . . . 1 Flight 3 | . . . . 3 Utility 8 | 2 . 1 2 3 Device 5 | 2 . . 1 2 Storage 1 | . . . . 1 Processor . | . . . . . Hackware . | . . . . . Protection 2 | . . 1 1 . Artifact . | . . . . . Weapon 17 | 3 1 4 5 4 Energy Gun 4 | 1 . 1 2 . Energy Cannon . | . . . . . Ballistic Gun 5 | 2 . . 1 2 Ballistic Cannon 4 | . . 1 1 2 Launcher 4 | . 1 2 1 . Special Weapon . | . . . . . Impact Weapon . | . . . . . Slashing Weapon . | . . . . . Piercing Weapon . | . . . . . Special Melee Weapon . | . . . . . Unidentified Prototypes . | . . . . . Parts Lost 18 | . . . . 18 Power 2 | . . . . 2 Propulsion 7 | . . . . 7 Utility 3 | . . . . 3 Weapon 6 | . . . . 6 Highest Loss Streak 10 | . . . . 10 To Critical Strikes . | . . . . . Average Slot Usage (%) 84 | . 100 84 96 70 Engine 11 | . 14 14 13 5 Core 1 | . . . . 5 Treads 1 | . . . . 7 Leg 24 | . 28 28 27 12 Device 6 | . 28 . 10 10 Protection 10 | . . 13 14 . Energy Gun 10 | . 8 12 14 5 Ballistic Gun 2 | . 14 . . 7 Ballistic Cannon 3 | . . 1 . 10 Launcher 10 | . 5 13 13 . Naked Turns . | . . . . . Heaviest Build 43 | 11 12 29 31 43 Greatest Support 88 | 20 20 20 27 88 Greatest Overweight (x) 7 | . . 1 1 7 Average Overweight (x) . | . . . . . Largest Inventory Capacity 5 | 5 5 5 5 5 Average Capacity 5 | 5 5 5 5 5 Most Carried 5 | 5 5 5 5 5 Average Carried 2 | 3 3 2 3 2 Final Capacity 5 | 5 5 5 5 5 Final Carried 5 | 3 5 5 5 . Class Distribution -------------------- 70% | Mutant 13% | Scavenger-Tank 9% | Scavenger-Mutant 4% | Skirmisher Dominant Class ---------------- Scavenger-Mutant | -10/Materials Mutant | -10/Subcaves Mutant | -8/Recycling Scavenger-Tank | -6/Factory Resources | -11 -10 -10 -8 -6 ----------- Run | Yrd Mat Sub Rec Fac Matter Collected 1047 | 330 . 195 53 469 Remotely . | . . . . . Salvage Created 939 | 132 31 148 53 575 Parts 59 | 21 5 11 4 18 Haulers Intercepted . | . . . . . Recyclers Shooed 1 | . . . . 1 Parts Field Recycled . | . . . . . Retrieved Matter . | . . . . . Parts Self-Destructed 5 | . . 5 . . Prevented . | . . . . . Kills | -11 -10 -10 -8 -6 ------- Run | Yrd Mat Sub Rec Fac Combat Hostiles Destroyed 18 | 1 . 7 2 8 Guns 4 | 1 . . . 3 Cannons 4 | . . . . 4 AOE 10 | . . 7 2 1 Classes Destroyed 9 | 3 2 2 1 1 Worker 1 | 1 . . . . Builder 1 | . 1 . . . Tunneler 4 | 4 . . . . Recycler 2 | . . . . 2 Watcher 1 | . 1 . . . Swarmer 3 | . . 3 . . Grunt 8 | 1 . . . 7 Sentry 3 | . . . 2 1 Subdweller 4 | . . 4 . . Best Kill Streak 5 | 5 1 4 1 3 Combat Bots Only 4 | 1 . 4 1 3 Max Kills in Single Turn 3 | 1 1 3 1 1 Gunslinging . | . . . . . Exploded 3 | . . 3 1 1 Melee . | . . . . . Uniques/NPCs Destroyed . | . . . . . Combat | -11 -10 -10 -8 -6 -------- Run | Yrd Mat Sub Rec Fac Hostile Shots Fired 174 | 9 . 22 10 133 Missed 57 | 2 . 10 4 41 Damage Taken 2493 | 76 45 186 90 2096 Core 928 | 10 . 29 31 858 Absorbed by Shields 172 | . . . . 172 Redirected to Shielding 42 | . . . 29 13 Core Remaining (%) 84 | 96 . . 72 . Volleys Fired 66 | 10 10 10 7 29 Largest 5 | 2 2 2 2 5 Hottest 211 | 60 60 70 105 211 Shots Fired 173 | 20 15 17 14 107 Gun 109 | 20 13 8 7 61 Cannon 47 | . . 2 . 45 Launcher 17 | . 2 7 7 1 Special . | . . . . . Kinetic 99 | 10 10 2 . 77 Thermal 36 | . . . 7 29 Explosive 17 | . 2 7 7 1 Electromagnetic 21 | 10 3 8 . . Robot Hit Streak 9 | 8 9 4 3 6 Robot Miss Streak 7 | 5 2 2 3 7 Penetration Max . | . . . . . Secondary Targets 1 | 1 . . . . Max Gunslinging Chain 1 | 1 . . . . Shots Hit Robots 99 | 10 8 9 8 64 Core Hits 83 | 7 3 19 7 47 Critical Kills 1 | 1 . . . . Critical Parts Destroyed . | . . . . . Critical Strikes 4 | 1 . . . 3 Burn 1 | . . . . 1 Destroy 1 | 1 . . . . Blast 2 | . . . . 2 Melee Attacks . | . . . . . Impact . | . . . . . Slashing . | . . . . . Piercing . | . . . . . Sneak Attacks . | . . . . . Combat Hostiles . | . . . . . Follow-up Attacks . | . . . . . Damage Inflicted 2671 | 125 156 789 162 1439 Guns 1064 | 125 92 55 42 750 Cannons 570 | . . 21 . 549 Explosions 1033 | . 64 713 120 136 Melee . | . . . . . Ramming 4 | . . . . 4 Kinetic 1157 | 60 48 21 . 1028 Thermal 432 | . 6 . 42 384 Explosive 914 | . 58 713 120 23 Electromagnetic 164 | 65 44 55 . . Impact . | . . . . . Slashing . | . . . . . Piercing . | . . . . . Highest Corruption 4 | . . . . 4 Average Corruption 4 | . . . . 4 Corruption Purged . | . . . . . Corruption Blocked . | . . . . . Overload Shots . | . . . . . Overflow Damage 113 | . . . . 113 Projectiles . | . . . . . Explosions 113 | . . . . 113 Melee . | . . . . . Knockbacks 8 | . . . . 8 Impact . | . . . . . Kinetic 6 | . . . . 6 Secondary 2 | . . . . 2 Self-Inflicted Damage 459 | . 45 . . 414 Shots 5 | . 1 . . 4 Rammed 1 | . . . . 1 Targets Rammed 1 | . . . . 1 Kicked . | . . . . . Crushed . | . . . . . Highest Temperature 775 | 24 . . 252 775 Average Temperature 220 | 9 . . 109 269 Received Heat Transfer 525 | 42 . 33 27 423 Effects 33 | . . . . 33 Shutdowns 7 | . . . . 7 Energy Bleed 4 | . . . . 4 Matter Decay 4 | . . . . 4 Short Circuit 5 | . . . . 5 Damage (minor) 3 | . . . . 3 Damage (major) 7 | . . . . 7 Damage (core) 3 | . . . . 3 Siege Activations . | . . . . . Robots Corrupted . | . . . . . Combat Hostiles . | . . . . . Parts Fried . | . . . . . Impact Corruptions . | . . . . . Robots Melted . | . . . . . Combat Hostiles . | . . . . . Parts Melted . | . . . . . Heat Transferred 779 | . 50 . 74 655 Parts Sabotaged . | . . . . . Parts Stolen . | . . . . . Parts Stripped . | . . . . . Power Chain Reactions . | . . . . . Alert | -11 -10 -10 -8 -6 ------- Run | Yrd Mat Sub Rec Fac Peak Influence 552 | 45 136 . 139 552 Initial 362 | . 29 . 110 362 Average 170 | 20 67 . 67 332 Maximum Alert Level 2 | . . . . 2 Low Security (%) 59 | 100 100 . 100 . Level 1 24 | . . . . 59 Level 2 16 | . . . . 40 Level 3 . | . . . . . Level 4 . | . . . . . Level 5 . | . . . . . High Security . | . . . . . Max Security . | . . . . . Squads Dispatched 3 | . 1 . . 2 Investigation 2 | . . . . 2 Extermination . | . . . . . Reinforcement 1 | . 1 . . . Assault . | . . . . . Garrison . | . . . . . Intercept . | . . . . . Searches Triggered 1 | . . . . 1 Construction Impeded . | . . . . . Haulers Reinforced . | . . . . . Active Scanning Responses . | . . . . . Cargo Convoy Interrupts . | . . . . . Stealth | -11 -10 -10 -8 -6 --------- Run | Yrd Mat Sub Rec Fac Distress Signals 2 | . . . . 2 Communications Jammed . | . . . . . Distress Signals . | . . . . . Times Spotted 48 | 1 4 24 2 17 Peak Tracking Total 8 | 1 3 8 1 5 Tactical Retreats 2 | . . 1 . 1 Traps | -11 -10 -10 -8 -6 ------- Run | Yrd Mat Sub Rec Fac Traps Triggered . | . . . . . Indirectly . | . . . . . Trap Hack Attempts . | . . . . . Triggered . | . . . . . Disarmed . | . . . . . Reprogrammed . | . . . . . Reused . | . . . . . Traps Extracted . | . . . . . Installed . | . . . . . Triggered . | . . . . . Machines | -11 -10 -10 -8 -6 ---------- Run | Yrd Mat Sub Rec Fac Machines Disabled 11 | . 2 3 . 6 Max in Single Turn 4 | . 2 2 . 4 Machines Repaired . | . . . . . Machines Dismantled . | . . . . . Machines Sabotaged . | . . . . . Overloaded Fab Kills . | . . . . . Hacking | -11 -10 -10 -8 -6 --------- Run | Yrd Mat Sub Rec Fac Machines Accessed 11 | . . . 8 3 Terminals 5 | . . . 4 1 Fabricators 1 | . . . . 1 Repair Stations 1 | . . . . 1 Recycling Units 4 | . . . 4 . Scanalyzers . | . . . . . Garrison Access . | . . . . . Total Hacks 39 | . . . 31 8 Successful 15 | . . . 13 2 Failed 24 | . . . 18 6 Catastrophic 4 | . . . 4 . Database Lockouts . | . . . . . Manual . | . . . . . Terminals 16 | . . . 14 2 Fabricators 3 | . . . . 3 Repair Stations 3 | . . . . 3 Recycling Units 17 | . . . 17 . Scanalyzers . | . . . . . Garrison Access . | . . . . . Terminal Hacks 3 | . . . 2 1 Open DSF 1 | . . . . 1 Alert Level 1 | . . . 1 . Zone Layout 1 | . . . 1 . Fabricator Hacks . | . . . . . Repair Station Hacks 1 | . . . . 1 Scan Component 1 | . . . . 1 Recycling Unit Hacks 11 | . . . 11 . Recycle Component 1 | . . . 1 . Process 2 | . . . 2 . Retrieve Matter 3 | . . . 3 . Retrieve Components 5 | . . . 5 . Scanalyzer . | . . . . . Garrison Access Hacks . | . . . . . Unauthorized Hacks . | . . . . . Terminals . | . . . . . Fabricators . | . . . . . Repair Stations . | . . . . . Recycling Units . | . . . . . Scanalyzers . | . . . . . Garrison Access . | . . . . . Data Cores Recovered . | . . . . . Used . | . . . . . Hacking Detections 9 | . . . 7 2 Full Trace Events 9 | . . . 7 2 Feedback Events . | . . . . . Feedback Blocked . | . . . . . Robot Schematics Acquired . | . . . . . Robots Built . | . . . . . Authchips . | . . . . . Time . | . . . . . Total Robot Build Rating . | . . . . . Part Schematics Acquired . | . . . . . Parts Built . | . . . . . Authchips . | . . . . . Time . | . . . . . Total Part Build Rating . | . . . . . Parts Repaired . | . . . . . Time . | . . . . . Parts Recycled 1 | . . . 1 . Recycled Matter 12 | . . . 12 . Retrieved Matter . | . . . . . Retrieved Components 5 | . . . 5 . Parts Scanalyzed . | . . . . . Part Schematics Acquired . | . . . . . Parts Damaged . | . . . . . Bothacking | -11 -10 -10 -8 -6 ------------ Run | Yrd Mat Sub Rec Fac Used RIF Installer . | . . . . . Robots Hacked . | . . . . . Non-combat . | . . . . . Combat . | . . . . . Robot Hacks Applied . | . . . . . Relay Couplers Released . | . . . . . Fabnet Peak Effective % . | . . . . . Robots Rewired . | . . . . . Allies Hacked . | . . . . . Hacks Repelled . | . . . . . Allies | -11 -10 -10 -8 -6 -------- Run | Yrd Mat Sub Rec Fac Total Allies . | . . . . . Largest Group . | . . . . . Highest-Rated Group . | . . . . . Highest-Rated Ally . | . . . . . Total Orders . | . . . . . Ally Attacks . | . . . . . Total Damage . | . . . . . Kills . | . . . . . Allies Corrupted . | . . . . . Allies Melted . | . . . . . Intel | -11 -10 -10 -8 -6 ------- Run | Yrd Mat Sub Rec Fac Robot Analysis Total . | . . . . . Derelict Logs Recovered . | . . . . . Drone Launches . | . . . . . Drone Recoveries . | . . . . . Exploration | -11 -10 -10 -8 -6 ------------- Run | Yrd Mat Sub Rec Fac Turns Passed 3457 | 214 124 1614 752 753 Spaces Moved 1996 | 144 80 831 513 428 Core 64 | 43 . . . 21 Treads 120 | . . . . 120 Legs 1759 | 101 80 831 513 234 Wheels . | . . . . . Hover 1 | . . . . 1 Flight 52 | . . . . 52 Fastest Speed 37 | 50 120 120 125 37 Average Speed 155 | 99 120 189 135 139 Slowest Speed 550 | 120 120 190 195 550 Overloaded Moves . | . . . . . Propulsion Burnouts . | . . . . . Robots Hopped . | . . . . . Cave-ins Triggered . | . . . . . Exploration Rate (%) 24 | 5 16 26 66 8 Regions Visited 4 Branch Regions 2 Pre-discovered Areas . | . . . . . Known Exits Taken . | . . . . . Unknown Exits Taken 4 | 1 1 1 1 . Scrap Searched . | . . . . . Spaces Dug . | . . . . . Terrain Destroyed 127 | . 44 21 47 15 Melee . | . . . . . Projectile 3 | . . . 2 1 AOE 124 | . 44 21 45 14 Terrain Rammed . | . . . . . Walls Destroyed . | . . . . . Machines Disabled . | . . . . . Actions | -11 -10 -10 -8 -6 --------- Run | Yrd Mat Sub Rec Fac Total 2214 | 197 92 858 550 517 Wait 18 | 10 . . . 8 Move 1992 | 143 79 830 512 428 Hop . | . . . . . Pick Up 48 | 16 2 4 8 18 Fast Attach . | . . . . . Attach 30 | 8 . 4 2 16 Detach 5 | 1 . 4 . . Swap 26 | 3 1 1 14 7 Drop 27 | 6 . 5 6 10 Fire 66 | 10 10 10 7 29 Melee . | . . . . . Ram 1 | . . . . 1 Kick . | . . . . . Crush . | . . . . . Escape Stasis . | . . . . . Rewire 1 | . . . 1 . Trap . | . . . . . Miscellaneous . | . . . . . Route ------- -11/Scrapyard -10/Materials -10/Subcaves -8/Recycling -6/Factory History --------- Turn | Location | Event 2 | -11/Scrapyard | Met Revision 17 99 | -11/Scrapyard | Discovered new exit (range 8) 215 | -11/Scrapyard | Entered Materials 300 | -10/Materials | Discovered new exit (range 10) 303 | -10/Materials | Build established: Scavenger-Mutant 339 | -10/Materials | Entered Subcaves 423 | -10/Subcaves | Ambushed by swarm of Subdwellers 426 | -10/Subcaves | Ambushed by Subdwellers from Twisted Machinery 426 | -10/Subcaves | Ambushed by Subdwellers from Twisted Machinery 634 | -10/Subcaves | Shifting Twisted Machinery released Battle Rifle 657 | -10/Subcaves | Build established: Mutant 1666 | -10/Subcaves | Shifting Twisted Machinery released Battle Cannon 1874 | -10/Subcaves | Discovered new exit (range 12) 1953 | -10/Subcaves | Entered Recycling 2529 | -8/Recycling | Discovered new exit (range 15) 2705 | -8/Recycling | Entered Factory 2705 | -6/Factory | Evolved 8 slots: Power x3, Propulsion x2, Weapon x3 3055 | -6/Factory | Search patrols dispatched 3222 | -6/Factory | Build established: Scavenger-Tank 3375 | -6/Factory | Core integrity fell below 50% 3417 | -6/Factory | Core integrity fell below 20% 3435 | -6/Factory | Lost 10 parts (2p4n1u3w) 3458 | -6/Factory | Destroyed by S-27 Virus with Autogun Last Messages --------------- Acquired Nuclear Pulse Thruster. C-30 ARC bursts open, deploying its payload. S-27 Virus unfolds itself. Acquired Nuclear Pulse Thruster. Fusion Modulator explodes. S-27 Virus destroyed. K-01 Serf destroyed. S-27 Virus destroyed. U-05 Engineer lays Concrete. Broken Imp. Terrain Scanner destroyed. Broken Battle Cannon destroyed. Acquired Energy Well. Nuclear Pulse Thruster destroyed. Slammed into S-27 Virus. Ramming works as a last resort when unarmed or blocked, but can have serious negative consequences. Nuclear Pulse Thruster destroyed. System corrupted by crushing effect (+4). [Achievement: First Step to Greatness] Map ----- +----------------------------------------------------+ | | | | | ?????????????????????????????????????????????????? | | ?????????????????????????????????????????????????? | | ?????????????????????????????????????????????????? | | ?????????????????????????????????????????????????? | | ?????????????????????????????????????????????????? | | ?????????????????????????????????????????????????? | | ?????????????????????????????????????????????????? | | ?????????????????????????????????????????????????? | | ?????????????????????????????????????????????????? | | ?????????????????????????????????????????????????? | | ?????????????????????????????????????????????????? | | ?????????????????????????????????????????????????? | | ?????????????????????????????????????????????????? | | ?????????????????????????????????????????????????? | | ?????????????????????????????????????????????????? | | ?????????????????????????????????????????????????? | | ?????????????????????????????????????????????????? | | ?????????????????????????????????????????????????? | | ??????????????????????????""""""?????????????????? | | ??????????????????????????# T#?????????????????? | | ?????????????????########## #??????????????????? | | ?????????????????# ! # #??????????????????? | | ?????????????????# # #??????????????????? | | ?????????????????# @s +??????????????????? | | ?????????????????# s# #??????????????????? | | ?????????????????# # #??????????????????? | | ?????????????????# # #??????????????????? | | ?????????????????# # #???????????????#??? | | ?????????????????# # #??????????????????? | | ?????????????????# ! # #??????????????????? | | ?????????????????########## #??????????????????# | | ??????????????????????????# #????? ????????????# | | ??????????????????????????# #?????? ??????????## | | ??????????????????? ??????# #??????????????????# | | ??????????????????? ""????# #???????????????#??# | | ??????????????????? """ ??# #??????????????????# | | ????????????????""" """ # #?????????? ???????# | | ?????????????# + +????? ????????????# | | ????????????????""" """ # #???????????????#??# | | ??????????????????? """ ??# #???? ?????? ????#?# | | ??????????????????? ""????# #??????????????????# | | ??????????????????? ??????# #??????????????????# | | ??????????????????????????# #??????????????????# | | ???????????????????????? ?# #??????####????????# | | ??????????????????????????# ########T #####????? | | ??????????????#?#?????????# #????? | | ?????????????????########## ###### | | ??????????##??#??# | +----------------------------------------------------+ Best States ------------- Heat Dissipation 37 Energy Generation 26 Energy Capacity 340 Matter Stores 300 Matter Capacity 300 Sight Range 16 Terrain Scan Range 16 Terrain Scan Density 10 Armor Coverage 800 Weapon Shielding 66 Evasion (%) 62 Recoil Reduction 4 Authchip Count 1 Item Schematics ----------------- None Robot Schematics ------------------ None Fabricated ------------ Nothing Alien Tech Used ----------------- None Achievements -------------- First Step to Greatness Made in Tau Ceti IV One Hack Too Far Storm Trooper Uninvited Guest Challenges ------------ None Game ------ Seed PointGunProcessor Manual? 0 Play Time 00:55:17 Cumulative 0.9 hours Start 2024.04.19 @ 03:28:15 End 2024.04.19 @ 04:37:07 Sessions 4 Manual Loads 0 Difficulty Rogue Special Mode None Game No. 1 Rogue 1 Adventurer 0 Explorer 0 Win Type - Total 0 Types 0/0/0/0/0/0/0/0/0 Lore% 0 Gallery% 2 Achievement% 1 Wizard Run 0 Options --------- Layout 1 ASCII 0 Keyboard 0 Movement Vi Keybinds 0 Fullscreen 1 Font 24/Smallcaps Map View 50x35 Zoom Use 0% Tactical HUD 0 Map Filters NONE Filters NONE Steam 0 RUN: 6abc8dc0-ac29-4f61-9181-17aec1e88df1